[Event "Denmark Team Championship 2022"]
[Site "Denmark"]
[Date "2022.10.29"]
[Round "1.7"]
[White "Pedersen, Finn"]
[Black "Brorsen, Jacob Abildlund"]
[Result "1-0"]
[ECO "A06"]
[WhiteElo "2266"]
[BlackElo "2201"]
[Annotator "ChessBase"]
[PlyCount "103"]
[EventDate "2022.10.29"]
[EventType "team-tourn"]
[EventCountry "DEN"]
[SourceTitle "playchess.com"]
[Source "ChessBase"]
[SourceQuality "1"]
[TimeControl "40/5400+30:1800+30"]

1. Nf3 {[%emt 0:00:11]} d5 {[%emt 0:00:28]} 2. d4 {[%emt 0:00:15]} e6 {[%emt 0:00:36]} 3. Bf4 {[%emt 0:01:19]} b6 {[%emt 0:00:11]} 4. e3 {[%emt 0:00:21]} Bb7 {[%emt 0:00:54]} 5. Nbd2 {[%emt 0:04:07]} Nf6 {[%emt 0:00:33]} 6. c3 {[%emt 0:00:18]} Bd6 {[%emt 0:00:51]} 7. Bb5+ {[%emt 0:02:20]} c6 {[%emt 0:08:59]} 8. Bd3 {[%emt 0:00:34]} Qc7 {[%emt 0:14:09]} 9. Bxd6 {[%emt 0:02:30]} Qxd6 {[%emt 0:02:02]} 10. Ne5 {[%emt 0:00:16]} Nbd7 {[%emt 0:02:29]} 11. f4 {[%emt 0:00:23]} Qe7 {[%emt 0:04:14]} 12. O-O {[%emt 0:02:53]} c5 {[%emt 0:00:37]} 13. Qf3 {[%emt 0:01:36]} Rc8 {[%emt 0:05:56]} 14. a4 {[%emt 0:01:31]} a5 {[%emt 0:03:33]} 15. Bb5 {[%emt 0:01:45]} O-O {[%emt 0:00:35]} 16. Bd3 {[%emt 0:02:12]} Rfd8 {[%emt 0:04:22]} 17. Rf2 {[%emt 0:05:05]} Nf8 {[%emt 0:04:28]} 18. g4 {[%emt 0:04:10]} Ne8 {[%emt 0:02:46]} 19. g5 {[%emt 0:20:41]} Nd6 {[%emt 0:02:14]} 20. Qg4 {[%emt 0:02:30]} Rc7 {[%emt 0:09:45]} 21. h4 {[%emt 0:05:28]} Kh8 {[%emt 0:04:38]} 22. Rg2 {[%emt 0:05:28]} Kg8 {[%emt 0:06:07]} 23. Nf1 {[%emt 0:03:02]} Ne4 {[%emt 0:01:24]} 24. Ng3 {[%emt 0:02:32]} Nd7 {[%emt 0:05:05]} 25. Rf1 {[%emt 0:04:43]} f5 {[%emt 0:01:19]} 26. gxf6 {[%emt 0:00:35]} Ndxf6 {[%emt 0:00:03]} 27. Qh3 {[%emt 0:00:15]} Bc6 {[%emt 0:03:41]} 28. Bc2 {[%emt 0:04:02]} Be8 {[%emt 0:01:53]} 29. Kh2 {[%emt 0:01:55]} Qd6 {[%emt 0:01:46]} 30. Rfg1 {[%emt 0:02:14]} Rb8 {[%emt 0:01:17]} 31. Nxe4 {[%emt 0:05:50]} dxe4 {[%emt 0:02:45]} 32. Bb3 {[%emt 0:02:55]} Re7 {[%emt 0:00:36]} 33. f5 {[%emt 0:01:59]} Bd7 {[%emt 0:02:51]} 34. fxe6 {[%emt 0:01:01]} Be8 {[%emt 0:01:08]} 35. Kh1 {[%emt 0:00:42]} Bh5 {[%emt 0:01:06]} 36. Nf7 {[%emt 0:01:04]} Qc7 {[%emt 0:01:05]} 37. Rxg7+ {[%emt 0:01:13]} Kf8 {[%emt 0:00:01]} 38. Qg3 {[%emt 0:02:49]} Bf3+ {[%emt 0:00:28]} 39. Kh2 {[%emt 0:00:39]} h5 {[%emt 0:00:40]} 40. Qxc7 {[%emt 0:01:56]} Rxc7 {[%emt 0:00:02]} 41. R1g5 {[%emt 0:32:27]} b5 {[%emt 0:31:45]} 42. R7g6 {[%emt 0:02:41]} Ke7 {[%emt 0:00:00]} 43. d5 {[%emt 0:00:00]} Ne8 {[%emt 0:00:00]} 44. d6+ {[%emt 0:00:00]} Nxd6 {[%emt 0:00:00]} 45. Nxd6 {[%emt 0:00:00]} Kxd6 {[%emt 0:00:00]} 46. axb5 {[%emt 0:00:00]} Rxb5 {[%emt 0:00:00]} 47. Rd5+ {[%emt 0:00:00]} Ke7 {[%emt 0:00:00]} 48. Rg7+ {[%emt 0:00:00]} Kxe6 {[%emt 0:00:00]} 49. Rxc7 {[%emt 0:00:00]} Rxb3 {[%emt 0:00:00]} 50. Rd2 {[%emt 0:00:00]} Rb5 {[%emt 0:00:00]} 51. Kg3 {[%emt 0:00:00]} Ke5 {[%emt 0:00:00]} 52. c4 {[%emt 0:00:00]} 1-0

[Event "Denmark Team Championship 2022"]
[Site "Denmark"]
[Date "2022.10.29"]
[Round "1.7"]
[White "Brondt, Nicolai Kvist"]
[Black "Simonsen, Carsten"]
[Result "1/2-1/2"]
[ECO "A36"]
[WhiteElo "2248"]
[BlackElo "2234"]
[Annotator "ChessBase"]
[PlyCount "154"]
[EventDate "2022.10.29"]
[EventType "team-tourn"]
[EventCountry "DEN"]
[SourceTitle "playchess.com"]
[Source "ChessBase"]
[SourceQuality "1"]
[TimeControl "40/5400+30:1800+30"]

1. c4 {[%emt 0:00:02]} g6 {[%emt 0:00:11]} 2. Nc3 {[%emt 0:00:49]} c5 {[%emt 0:00:13]} 3. g3 {[%emt 0:00:04]} Bg7 {[%emt 0:00:16]} 4. Bg2 {[%emt 0:00:05]} Nc6 {[%emt 0:00:10]} 5. a3 {[%emt 0:00:09]} Nf6 {[%emt 0:05:29]} 6. Rb1 {[%emt 0:01:02]} O-O {[%emt 0:03:34]} 7. b4 {[%emt 0:03:26]} cxb4 {[%emt 0:07:51]} 8. axb4 {[%emt 0:00:01]} d6 {[%emt 0:00:26]} 9. Nf3 {[%emt 0:01:59]} d5 {[%emt 0:05:42]} 10. b5 {[%emt 0:07:55]} Na5 {[%emt 0:02:09]} 11. cxd5 {[%emt 0:08:42]} Nxd5 {[%emt 0:00:11]} 12. Nxd5 {[%emt 0:00:26]} Qxd5 {[%emt 0:00:11]} 13. O-O {[%emt 0:01:35]} a6 {[%emt 0:08:55]} 14. bxa6 {[%emt 0:14:50]} Rxa6 {[%emt 0:00:13]} 15. d3 {[%emt 0:02:57]} Nc6 {[%emt 0:13:31]} 16. Bb2 {[%emt 0:02:19]} Ra2 {[%emt 0:05:04]} 17. Ne5 {[%emt 0:13:35]} Qe6 {[%emt 0:03:40]} 18. Nxc6 {[%emt 0:02:36]} Rxb2 {[%emt 0:03:59]} 19. Rxb2 {[%emt 0:01:46]} Bxb2 {[%emt 0:00:09]} 20. Qc2 {[%emt 0:04:48]} Bf6 {[%emt 0:01:57]} 21. Nb4 {[%emt 0:02:37]} Qd6 {[%emt 0:04:55]} 22. Nd5 {[%emt 0:02:04]} Bg7 {[%emt 0:00:35]} 23. Rb1 {[%emt 0:02:04]} Be6 {[%emt 0:05:20]} 24. Qc7 {[%emt 0:02:19]} Bxd5 {[%emt 0:07:16]} 25. Qxd6 {[%emt 0:00:19]} exd6 {[%emt 0:00:07]} 26. Bxd5 {[%emt 0:00:02]} Rb8 {[%emt 0:00:16]} 27. Rc1 {[%emt 0:06:43]} Re8 {[%emt 0:01:57]} 28. e3 {[%emt 0:06:31]} Re7 {[%emt 0:00:24]} 29. Rc8+ {[%emt 0:01:48]} Bf8 {[%emt 0:00:02]} 30. d4 {[%emt 0:00:49]} h5 {[%emt 0:01:20]} 31. h3 {[%emt 0:00:52]} Kg7 {[%emt 0:00:35]} 32. g4 {[%emt 0:01:45]} hxg4 {[%emt 0:00:23]} 33. hxg4 {[%emt 0:00:06]} Rd7 {[%emt 0:04:22]} 34. Kg2 {[%emt 0:01:07]} Be7 {[%emt 0:02:21]} 35. Kg3 {[%emt 0:01:17]} Bg5 {[%emt 0:03:52]} 36. Rb8 {[%emt 0:01:18]} Rc7 {[%emt 0:01:44]} 37. Bxb7 {[%emt 0:00:42]} Be7 {[%emt 0:00:38]} 38. Bd5 {[%emt 0:00:52]} Bf6 {[%emt 0:00:50]} 39. Rb6 {[%emt 0:03:24]} Be7 {[%emt 0:00:12]} 40. Ra6 {[%emt 0:02:57]} Rd7 {[%emt 0:01:35]} 41. Kf4 {[%emt 0:07:43]} Rc7 {[%emt 0:03:44]} 42. Bc6 {[%emt 0:01:17]} Bf8 {[%emt 0:01:28]} 43. e4 {[%emt 0:03:35]} Kf6 {[%emt 0:03:07]} 44. g5+ {[%emt 0:02:19]} Ke7 {[%emt 0:03:19]} 45. d5 {[%emt 0:02:41]} f6 {[%emt 0:05:27]} 46. Ra8 {[%emt 0:02:46]} Kf7 {[%emt 0:04:11]} 47. Be8+ {[%emt 0:07:39]} Kg7 {[%emt 0:00:10]} 48. Bxg6 {[%emt 0:01:45]} Kxg6 {[%emt 0:01:41]} 49. Rxf8 {[%emt 0:00:12]} fxg5+ {[%emt 0:00:07]} 50. Kg4 {[%emt 0:00:38]} Rc4 {[%emt 0:03:11]} 51. f3 {[%emt 0:01:47]} Rc1 {[%emt 0:00:21]} 52. Rd8 {[%emt 0:01:37]} Rg1+ {[%emt 0:00:14]} 53. Kh3 {[%emt 0:00:05]} Kf6 {[%emt 0:00:17]} 54. Rxd6+ {[%emt 0:00:33]} Ke5 {[%emt 0:00:13]} 55. Re6+ {[%emt 0:00:48]} Kf4 {[%emt 0:00:15]} 56. Kh2 {[%emt 0:00:59]} Rd1 {[%emt 0:00:34]} 57. Rf6+ {[%emt 0:00:28]} Ke3 {[%emt 0:00:29]} 58. Kg2 {[%emt 0:01:15]} g4 {[%emt 0:01:07]} 59. fxg4 {[%emt 0:00:30]} Kxe4 {[%emt 0:00:08]} 60. Rf5 {[%emt 0:01:26]} Rd3 {[%emt 0:01:52]} 61. Kf2 {[%emt 0:00:13]} Rh3 {[%emt 0:05:10]} 62. Ke2 {[%emt 0:00:59]} Rh2+ {[%emt 0:02:41]} 63. Kd1 {[%emt 0:00:05]} Rg2 {[%emt 0:01:32]} 64. Rg5 {[%emt 0:00:12]} Ra2 {[%emt 0:01:05]} 65. d6 {[%emt 0:01:28]} Ra4 {[%emt 0:02:51]} 66. Ke2 {[%emt 0:00:27]} Rd4 {[%emt 0:00:17]} 67. Rg6 {[%emt 0:00:17]} Kf4 {[%emt 0:00:23]} 68. Kf2 {[%emt 0:00:48]} Rd3 {[%emt 0:00:28]} 69. Kg2 {[%emt 0:00:26]} Rg3+ {[%emt 0:00:23]} 70. Kf2 {[%emt 0:00:54]} Rd3 {[%emt 0:00:10]} 71. Ke1 {[%emt 0:00:33]} Rd5 {[%emt 0:00:41]} 72. Ke2 {[%emt 0:00:27]} Rd4 {[%emt 0:00:10]} 73. Kf1 {[%emt 0:00:50]} Rd2 {[%emt 0:01:18]} 74. Kg1 {[%emt 0:00:30]} Kg3 {[%emt 0:00:45]} 75. Kf1 {[%emt 0:00:05]} Kf4 {[%emt 0:00:07]} 76. Ke1 {[%emt 0:00:13]} Rd5 {[%emt 0:00:14]} 77. Ke2 {[%emt 0:00:37]} Rd4 1/2-1/2

[Event "Denmark Team Championship 2022"]
[Site "Denmark"]
[Date "2022.10.29"]
[Round "1.7"]
[White "Pedersen, Henrik Dahl"]
[Black "Kristensen, Kaare Hove"]
[Result "1/2-1/2"]
[ECO "B72"]
[WhiteElo "2233"]
[BlackElo "2267"]
[Annotator "ChessBase"]
[PlyCount "129"]
[EventDate "2022.10.29"]
[EventType "team-tourn"]
[EventCountry "DEN"]
[SourceTitle "playchess.com"]
[Source "ChessBase"]
[SourceQuality "1"]
[TimeControl "40/5400+30:1800+30"]

1. e4 {[%emt 0:00:03]} c5 {[%emt 0:00:13]} 2. Nf3 {[%emt 0:00:11]} d6 {[%emt 0:01:06]} 3. d4 {[%emt 0:00:08]} Nf6 {[%emt 0:00:10]} 4. Nc3 {[%emt 0:00:32]} cxd4 {[%emt 0:00:08]} 5. Nxd4 {[%emt 0:00:07]} g6 {[%emt 0:02:49]} 6. Be3 {[%emt 0:03:19]} a6 {[%emt 0:00:11]} 7. Qd2 {[%emt 0:06:37]} b5 {[%emt 0:04:11]} 8. f3 {[%emt 0:00:38]} Bb7 {[%emt 0:02:44]} 9. Bh6 {[%emt 0:04:03]} Bxh6 {[%emt 0:05:18]} 10. Qxh6 {[%emt 0:00:10]} Nbd7 {[%emt 0:04:42]} 11. O-O-O {[%emt 0:05:55]} Rc8 {[%emt 0:01:13]} 12. Kb1 {[%emt 0:05:38]} Rxc3 {[%emt 0:06:29]} 13. bxc3 {[%emt 0:00:08]} Qc7 {[%emt 0:04:17]} 14. h4 {[%emt 0:08:18]} Qxc3 {[%emt 0:06:44]} 15. Qd2 {[%emt 0:01:24]} Qc7 {[%emt 0:07:11]} 16. h5 {[%emt 0:09:55]} e5 {[%emt 0:17:12]} 17. Nb3 {[%emt 0:01:00]} Ke7 {[%emt 0:02:19]} 18. hxg6 {[%emt 0:02:38]} fxg6 {[%emt 0:00:08]} 19. Bd3 {[%emt 0:01:01]} Nb6 {[%emt 0:03:09]} 20. Qh6 {[%emt 0:05:10]} Rf8 {[%emt 0:01:24]} 21. Qg5 {[%emt 0:00:26]} Rf7 {[%emt 0:01:29]} 22. f4 {[%emt 0:02:19]} Na4 {[%emt 0:05:50]} 23. fxe5 {[%emt 0:01:15]} dxe5 {[%emt 0:00:08]} 24. Rdf1 {[%emt 0:01:42]} Qc3 {[%emt 0:03:32]} 25. Qc1 {[%emt 0:02:17]} Qb4 {[%emt 0:01:37]} 26. a3 {[%emt 0:12:46]} Qd6 {[%emt 0:00:32]} 27. Ka1 {[%emt 0:01:25]} Kf8 {[%emt 0:04:06]} 28. Rf3 {[%emt 0:01:15]} Bc8 {[%emt 0:01:21]} 29. Rhf1 {[%emt 0:01:30]} Kg7 {[%emt 0:00:30]} 30. c4 {[%emt 0:01:41]} Bg4 {[%emt 0:09:31]} 31. Re3 {[%emt 0:07:45]} Rc7 {[%emt 0:00:55]} 32. Rf2 {[%emt 0:02:13]} Be6 {[%emt 0:02:01]} 33. Rd2 {[%emt 0:05:31]} bxc4 {[%emt 0:00:42]} 34. Bxc4 {[%emt 0:00:24]} Qb6 {[%emt 0:00:20]} 35. Rc2 {[%emt 0:00:53]} Rxc4 {[%emt 0:00:29]} 36. Rxc4 {[%emt 0:00:29]} Bxc4 {[%emt 0:00:07]} 37. Qxc4 {[%emt 0:00:17]} Qxe3 {[%emt 0:00:13]} 38. Qxa4 {[%emt 0:00:13]} Qg1+ {[%emt 0:01:41]} 39. Kb2 {[%emt 0:00:36]} Qxg2+ {[%emt 0:00:10]} 40. Kc1 {[%emt 0:00:32]} Qe2 {[%emt 0:01:46]} 41. Qa5 {[%emt 0:32:34]} Qc4+ {[%emt 0:13:51]} 42. Kb2 {[%emt 0:00:00]} h5 {[%emt 0:01:08]} 43. Qxe5 {[%emt 0:00:00]} Qe2+ {[%emt 0:00:55]} 44. Kc1 {[%emt 0:00:00]} Qc4+ {[%emt 0:00:18]} 45. Kb2 {[%emt 0:00:00]} Qe2+ {[%emt 0:00:05]} 46. Kc1 {[%emt 0:00:00]} Qxe4 {[%emt 0:00:17]} 47. Qc7+ {[%emt 0:00:00]} Kh6 {[%emt 0:00:17]} 48. Nd2 {[%emt 0:00:00]} Qd4 {[%emt 0:05:03]} 49. Qc8 {[%emt 0:00:00]} Qd3 {[%emt 0:06:59]} 50. Nc4 {[%emt 0:00:00]} Qc3+ {[%emt 0:00:30]} 51. Kd1 {[%emt 0:00:00]} Ng4 {[%emt 0:01:50]} 52. Qf8+ {[%emt 0:00:00]} Kg5 {[%emt 0:00:57]} 53. Nd2 {[%emt 0:00:00]} Kh4 {[%emt 0:03:34]} 54. Qd6 {[%emt 0:00:00]} Qa1+ {[%emt 0:00:47]} 55. Kc2 {[%emt 0:00:00]} Qf6 {[%emt 0:00:37]} 56. Qd3 {[%emt 0:00:00]} Qc6+ {[%emt 0:00:23]} 57. Kb3 {[%emt 0:00:00]} Qb5+ {[%emt 0:01:41]} 58. Qxb5 {[%emt 0:00:00]} axb5 {[%emt 0:00:02]} 59. Kb4 {[%emt 0:00:00]} Ne3 {[%emt 0:00:44]} 60. Kxb5 {[%emt 0:00:00]} Nd1 {[%emt 0:00:16]} 61. Kb4 {[%emt 0:00:00]} Nb2 {[%emt 0:00:37]} 62. Kb3 {[%emt 0:00:00]} Nd3 {[%emt 0:00:06]} 63. Kc4 {[%emt 0:00:00]} Nb2+ {[%emt 0:00:16]} 64. Kb3 {[%emt 0:00:00]} Nd3 {[%emt 0:00:17]} 65. Kc4 {[%emt 0:00:00]} 1/2-1/2

[Event "Denmark Team Championship 2022"]
[Site "Denmark"]
[Date "2022.10.29"]
[Round "1.7"]
[White "Christensen, Thomas"]
[Black "Jaksland, Tim"]
[Result "1-0"]
[ECO "D02"]
[WhiteElo "2187"]
[BlackElo "2100"]
[Annotator "ChessBase"]
[PlyCount "57"]
[EventDate "2022.10.29"]
[EventType "team-tourn"]
[EventCountry "DEN"]
[SourceTitle "playchess.com"]
[Source "ChessBase"]
[SourceQuality "1"]
[TimeControl "40/5400+30:1800+30"]

1. d4 {[%emt 0:00:10]} Nf6 {[%emt 0:00:16]} 2. Nf3 {[%emt 0:00:58]} d5 {[%emt 0:01:38]} 3. Bf4 {[%emt 0:05:04]} c5 {[%emt 0:01:47]} 4. e3 {[%emt 0:00:47]} Nc6 {[%emt 0:01:35]} 5. c3 {[%emt 0:00:40]} e6 {[%emt 0:03:20]} 6. Nbd2 {[%emt 0:04:12]} Nh5 {[%emt 0:01:42]} 7. Bg5 {[%emt 0:06:06]} f6 {[%emt 0:00:41]} 8. Bh4 {[%emt 0:00:23]} g6 {[%emt 0:00:24]} 9. Bb5 {[%emt 0:03:43]} Bd7 {[%emt 0:05:16]} 10. O-O {[%emt 0:02:27]} cxd4 {[%emt 0:15:08]} 11. cxd4 {[%emt 0:02:57]} Bd6 {[%emt 0:08:18]} 12. g4 {[%emt 0:06:41]} g5 {[%emt 0:07:20]} 13. gxh5 {[%emt 0:06:08]} gxh4 {[%emt 0:00:07]} 14. e4 {[%emt 0:00:22]} O-O {[%emt 0:10:47]} 15. Kh1 {[%emt 0:08:38]} Kh8 {[%emt 0:00:42]} 16. Rg1 {[%emt 0:01:08]} Qe7 {[%emt 0:06:52]} 17. Qe2 {[%emt 0:12:46]} dxe4 {[%emt 0:12:21]} 18. Nxe4 {[%emt 0:03:40]} a6 {[%emt 0:02:10]} 19. Bc4 {[%emt 0:02:53]} b5 {[%emt 0:03:24]} 20. Bb3 {[%emt 0:01:04]} Rae8 {[%emt 0:04:20]} 21. Qe3 {[%emt 0:01:56]} Bb8 {[%emt 0:08:39]} 22. Qh6 {[%emt 0:00:45]} f5 {[%emt 0:01:38]} 23. Nxh4 {[%emt 0:01:18]} Rg8 {[%emt 0:01:30]} 24. Nf6 {[%emt 0:03:10]} Nxd4 {[%emt 0:01:11]} 25. Nxg8 {[%emt 0:03:24]} Bc6+ {[%emt 0:00:44]} 26. f3 {[%emt 0:00:07]} Nxf3 {[%emt 0:00:30]} 27. Ng6+ {[%emt 0:00:40]} Kxg8 {[%emt 0:00:16]} 28. Nxe7+ {[%emt 0:00:10]} Kf7 {[%emt 0:00:29]} 29. Qg7# 1-0

[Event "Denmark Team Championship 2022"]
[Site "Denmark"]
[Date "2022.10.29"]
[Round "1.8"]
[White "Pedersen, Jan"]
[Black "Krejci, Martin"]
[Result "1/2-1/2"]
[ECO "B51"]
[WhiteElo "2383"]
[BlackElo "2058"]
[Annotator "ChessBase"]
[PlyCount "114"]
[EventDate "2022.10.29"]
[EventType "team-tourn"]
[EventCountry "DEN"]
[SourceTitle "playchess.com"]
[Source "ChessBase"]
[SourceQuality "1"]
[TimeControl "40/5400+30:1800+30"]

1. e4 {[%emt 0:00:03]} c5 {[%emt 0:00:04]} 2. Nf3 {[%emt 0:00:12]} d6 {[%emt 0:00:05]} 3. Bb5+ {[%emt 0:00:19]} Nc6 {[%emt 0:00:05]} 4. O-O {[%emt 0:00:36]} Bd7 {[%emt 0:00:09]} 5. Re1 {[%emt 0:00:14]} a6 {[%emt 0:01:05]} 6. Bf1 {[%emt 0:01:01]} Bg4 {[%emt 0:00:11]} 7. h3 {[%emt 0:01:37]} Bxf3 {[%emt 0:00:12]} 8. Qxf3 {[%emt 0:00:13]} Nf6 {[%emt 0:00:17]} 9. c3 {[%emt 0:08:33]} g6 {[%emt 0:05:32]} 10. Qd1 {[%emt 0:10:58]} Bg7 {[%emt 0:20:19]} 11. d3 {[%emt 0:07:35]} O-O {[%emt 0:00:47]} 12. g3 {[%emt 0:00:55]} b5 {[%emt 0:13:38]} 13. Bg2 {[%emt 0:01:24]} Rc8 {[%emt 0:00:57]} 14. Be3 {[%emt 0:16:35]} b4 {[%emt 0:27:54]} 15. cxb4 {[%emt 0:07:17]} Nxb4 {[%emt 0:00:28]} 16. Na3 {[%emt 0:11:55]} Nd7 {[%emt 0:10:31]} 17. Re2 {[%emt 0:03:03]} Ne5 {[%emt 0:03:57]} 18. Rd2 {[%emt 0:03:48]} Nec6 {[%emt 0:01:46]} 19. Nc4 {[%emt 0:01:28]} Nd4 {[%emt 0:00:55]} 20. a3 {[%emt 0:10:13]} Nbc6 {[%emt 0:00:15]} 21. Rb1 {[%emt 0:01:57]} a5 {[%emt 0:06:30]} 22. Kh2 {[%emt 0:03:37]} Qc7 {[%emt 0:01:45]} 23. h4 {[%emt 0:00:53]} h5 {[%emt 0:01:22]} 24. Bg5 {[%emt 0:00:50]} Rb8 {[%emt 0:00:27]} 25. Ne3 {[%emt 0:00:54]} e6 {[%emt 0:02:49]} 26. Nc4 {[%emt 0:01:21]} Nb3 {[%emt 0:00:10]} 27. Re2 {[%emt 0:00:23]} Ncd4 {[%emt 0:00:41]} 28. Re1 {[%emt 0:00:12]} a4 {[%emt 0:00:30]} 29. Bf4 {[%emt 0:00:31]} Rfd8 {[%emt 0:01:02]} 30. g4 {[%emt 0:01:27]} hxg4 {[%emt 0:00:27]} 31. Qxg4 {[%emt 0:00:06]} e5 {[%emt 0:00:25]} 32. Bg5 {[%emt 0:01:39]} Qd7 {[%emt 0:00:37]} 33. Qd1 {[%emt 0:00:53]} Rf8 {[%emt 0:00:05]} 34. Bh3 {[%emt 0:00:30]} Qc7 {[%emt 0:00:35]} 35. Ne3 {[%emt 0:00:30]} f6 {[%emt 0:00:26]} 36. Nd5 {[%emt 0:00:06]} Qd8 {[%emt 0:00:17]} 37. Be3 {[%emt 0:00:27]} Qe8 {[%emt 0:00:55]} 38. h5 {[%emt 0:01:12]} g5 {[%emt 0:00:37]} 39. Rg1 {[%emt 0:00:46]} Bh6 {[%emt 0:00:31]} 40. f4 {[%emt 0:00:33]} exf4 {[%emt 0:00:21]} 41. Bxf4 {[%emt 0:30:08]} Qd8 {[%emt 0:07:04]} 42. Ne3 {[%emt 0:00:00]} Nd2 {[%emt 0:04:39]} 43. Rg2 {[%emt 0:00:00]} Nxb1 {[%emt 0:00:46]} 44. Nc4 {[%emt 0:00:00]} Rb3 {[%emt 0:17:46]} 45. Bxd6 {[%emt 0:00:00]} Re8 {[%emt 0:00:02]} 46. Kh1 {[%emt 0:00:00]} Nxa3 {[%emt 0:01:01]} 47. bxa3 {[%emt 0:00:00]} Bf8 {[%emt 0:00:06]} 48. e5 {[%emt 0:00:00]} Bxd6 {[%emt 0:02:03]} 49. exd6 {[%emt 0:00:00]} Nb5 {[%emt 0:01:19]} 50. d7 {[%emt 0:00:00]} Re7 {[%emt 0:00:01]} 51. Qf1 {[%emt 0:00:00]} Rxd7 {[%emt 0:00:48]} 52. Bxd7 {[%emt 0:00:00]} Qxd7 {[%emt 0:00:01]} 53. Qxf6 {[%emt 0:00:00]} Qh3+ {[%emt 0:00:06]} 54. Kg1 {[%emt 0:00:00]} Rb1+ {[%emt 0:00:01]} 55. Kf2 {[%emt 0:00:00]} Qh4+ {[%emt 0:00:26]} 56. Rg3 {[%emt 0:00:47]} Qh2+ {[%emt 0:00:54]} 57. Rg2 {[%emt 0:00:19]} Qh4+ {[%emt 0:00:11]} 1/2-1/2

[Event "Denmark Team Championship 2022"]
[Site "Denmark"]
[Date "2022.10.29"]
[Round "1.8"]
[White "Seegert, Kristian"]
[Black "Sobjerg, Erik"]
[Result "0-1"]
[ECO "C15"]
[WhiteElo "2211"]
[BlackElo "2252"]
[Annotator "ChessBase"]
[PlyCount "162"]
[EventDate "2022.10.29"]
[EventType "team-tourn"]
[EventCountry "DEN"]
[SourceTitle "playchess.com"]
[Source "ChessBase"]
[SourceQuality "1"]
[TimeControl "40/5400+30:1800+30"]

1. e4 e6 {[%emt 0:01:31]} 2. d4 {[%emt 0:01:27]} d5 {[%emt 0:00:04]} 3. Nc3 {[%emt 0:00:14]} Bb4 {[%emt 0:02:23]} 4. Nge2 {[%emt 0:02:06]} Nc6 {[%emt 0:11:07]} 5. e5 b6 6. Nf4 {[%emt 0:03:20]} Qd7 {[%emt 0:02:43]} 7. Be3 {[%emt 0:06:33]} Bb7 {[%emt 0:11:25]} 8. Bd3 {[%emt 0:01:05]} O-O-O {[%emt 0:07:54]} 9. O-O {[%emt 0:05:36]} f6 {[%emt 0:06:39]} 10. exf6 {[%emt 0:08:00]} Nxf6 11. a3 {[%emt 0:00:03]} Bxc3 {[%emt 0:03:27]} 12. bxc3 {[%emt 0:04:54]} e5 {[%emt 0:06:16]} 13. Nh5 {[%emt 0:11:15]} Ne4 {[%emt 0:08:59]} 14. Qe1 {[%emt 0:01:35]} g6 {[%emt 0:02:51]} 15. Ng3 {[%emt 0:07:37]} Rde8 16. f4 {[%emt 0:00:13]} Nxg3 {[%emt 0:07:04]} 17. Qxg3 {[%emt 0:14:22]} e4 18. Bb5 {[%emt 0:00:06]} a6 {[%emt 0:01:31]} 19. Bxc6 {[%emt 0:14:57]} Bxc6 20. f5 {[%emt 0:00:20]} gxf5 {[%emt 0:02:31]} 21. Bf4 {[%emt 0:00:15]} Rhg8 {[%emt 0:01:00]} 22. Qh3 {[%emt 0:04:29]} Rg4 {[%emt 0:05:32]} 23. Rf2 {[%emt 0:01:16]} Qg7 {[%emt 0:01:54]} 24. Be5 {[%emt 0:00:46]} Qg6 {[%emt 0:02:32]} 25. Raf1 {[%emt 0:00:34]} Bb5 {[%emt 0:05:31]} 26. Re1 Bd7 {[%emt 0:00:58]} 27. Bf4 {[%emt 0:03:04]} Rg8 {[%emt 0:02:21]} 28. Ree2 {[%emt 0:01:38]} Bb5 {[%emt 0:00:24]} 29. Re1 {[%emt 0:02:26]} h5 {[%emt 0:00:26]} 30. Re3 {[%emt 0:00:33]} h4 {[%emt 0:00:50]} 31. Be5 {[%emt 0:00:20]} Bd7 {[%emt 0:00:24]} 32. Bf4 {[%emt 0:01:22]} Qc6 33. Re1 {[%emt 0:00:32]} Qa4 {[%emt 0:01:30]} 34. Ra1 {[%emt 0:01:15]} Qc6 {[%emt 0:02:17]} 35. Kh1 {[%emt 0:00:34]} Kb7 {[%emt 0:00:27]} 36. Qe3 {[%emt 0:01:15]} Qg6 37. Rg1 Qh5 {[%emt 0:03:18]} 38. h3 {[%emt 0:01:25]} R4g6 {[%emt 0:00:36]} 39. Bh2 {[%emt 0:03:09]} Qh6 {[%emt 0:01:42]} 40. Bf4 {[%emt 0:00:38]} Qg7 {[%emt 0:00:23]} 41. Be5 {[%emt 0:04:16]} Qe7 {[%emt 0:00:21]} 42. Ra1 Rc6 {[%emt 0:03:58]} 43. Bh2 {[%emt 0:04:02]} Rc4 {[%emt 0:00:53]} 44. Re2 {[%emt 0:04:23]} Qe6 {[%emt 0:02:42]} 45. Qd2 {[%emt 0:03:06]} Bb5 {[%emt 0:04:04]} 46. Re3 {[%emt 0:00:49]} Qe7 {[%emt 0:02:59]} 47. Bf4 {[%emt 0:00:20]} Be8 {[%emt 0:00:50]} 48. Qe1 {[%emt 0:03:16]} Rg6 {[%emt 0:03:44]} 49. Qd2 {[%emt 0:01:04]} Ra4 {[%emt 0:01:02]} 50. Qc1 {[%emt 0:00:59]} Qg7 {[%emt 0:00:47]} 51. Qd2 {[%emt 0:00:26]} Bf7 {[%emt 0:02:29]} 52. Kh2 {[%emt 0:00:55]} Qf8 {[%emt 0:01:22]} 53. Qc1 {[%emt 0:02:06]} c5 {[%emt 0:00:42]} 54. Qd2 {[%emt 0:00:24]} Rc6 {[%emt 0:01:02]} 55. Be5 {[%emt 0:01:44]} Be6 {[%emt 0:02:01]} 56. Bf4 {[%emt 0:01:54]} Rc4 {[%emt 0:00:55]} 57. Rc1 {[%emt 0:00:54]} Qg7 {[%emt 0:00:41]} 58. Be5 {[%emt 0:00:24]} Qh6 {[%emt 0:00:21]} 59. Qf2 {[%emt 0:00:25]} cxd4 {[%emt 0:03:02]} 60. cxd4 {[%emt 0:00:15]} Rc3 {[%emt 0:00:24]} 61. Bf4 {[%emt 0:01:33]} Rxc2 {[%emt 0:00:57]} 62. Rxc2 {[%emt 0:04:40]} Rxc2 {[%emt 0:00:01]} 63. Bxh6 {[%emt 0:03:20]} Rxf2 {[%emt 0:00:03]} 64. Re1 {[%emt 0:00:29]} f4 {[%emt 0:00:26]} 65. Kg1 {[%emt 0:00:05]} e3 {[%emt 0:01:43]} 66. Rf1 {[%emt 0:01:29]} Rd2 {[%emt 0:03:25]} 67. Bxf4 {[%emt 0:00:27]} Rxd4 {[%emt 0:00:26]} 68. Bxe3 {[%emt 0:00:18]} Re4 {[%emt 0:00:56]} 69. Bg5 {[%emt 0:00:30]} Kc6 {[%emt 0:00:40]} 70. Rf6 {[%emt 0:00:42]} Kb5 {[%emt 0:00:21]} 71. Rh6 {[%emt 0:00:45]} Ka4 {[%emt 0:00:30]} 72. Bxh4 {[%emt 0:00:37]} Kxa3 {[%emt 0:00:08]} 73. g4 {[%emt 0:00:27]} b5 {[%emt 0:00:39]} 74. Bf6 {[%emt 0:00:28]} b4 {[%emt 0:00:27]} 75. Rh8 {[%emt 0:00:26]} b3 {[%emt 0:00:59]} 76. Ra8 {[%emt 0:00:45]} Ra4 {[%emt 0:00:23]} 77. Rb8 {[%emt 0:00:28]} a5 {[%emt 0:00:55]} 78. Be7+ {[%emt 0:00:32]} Ka2 {[%emt 0:00:44]} 79. Rf8 {[%emt 0:00:31]} b2 {[%emt 0:00:38]} 80. Rf2 {[%emt 0:00:09]} Ka1 {[%emt 0:00:36]} 81. Bf6 {[%emt 0:00:15]} d4 {[%emt 0:00:09]} 0-1